[Event "25e Open International Landes Côtes Sud - Soorts Hossegor"]
[Site "Hossegor, France"]
[Date "2018.05.20"]
[Round "3.2"]
[White "Hargues, Franck"]
[Black "Fantinel, Thibault"]
[Result "0-1"]
[TimeControl "90 minutes + 30 secondes par coup"]
[WhiteElo "1938"]
[BlackElo "2406"]

1. e4 {[%clk 01:30:58]} {[%emt 00:00:02]} c5 {[%clk 01:25:10]} {[%emt
00:05:50]} 2. Nf3 {[%clk 01:31:12]} {[%emt 00:00:15]} Nc6 {[%clk 01:25:32]}
{[%emt 00:00:09]} 3. d4 {[%clk 01:31:17]} {[%emt 00:00:24]} cxd4 {[%clk
01:25:58]} {[%emt 00:00:05]} 4. Nxd4 {[%clk 01:31:39]} {[%emt 00:00:07]} e6
{[%clk 01:25:03]} {[%emt 00:01:25]} 5. Nxc6 {[%clk 01:31:28]} {[%emt 00:00:41]}
bxc6 {[%clk 01:25:28]} {[%emt 00:00:04]} 6. c4 {[%clk 01:31:53]} {[%emt
00:00:05]} Nf6 {[%clk 01:23:19]} {[%emt 00:02:39]} 7. Bd3 {[%clk 01:09:49]}
{[%emt 00:22:34]} e5 {[%clk 01:22:16]} {[%emt 00:01:33]} 8. O-O {[%clk
01:09:50]} {[%emt 00:00:28]} Bc5 {[%clk 01:21:39]} {[%emt 00:01:08]} 9. Nc3
{[%clk 01:07:14]} {[%emt 00:03:04]} d6 {[%clk 01:19:01]} {[%emt 00:03:09]} 10.
Be2 {[%clk 01:00:01]} {[%emt 00:07:44]} O-O {[%clk 01:11:19]} {[%emt 00:08:12]}
11. Qd3 {[%clk 00:59:35]} {[%emt 00:00:55]} Rb8 {[%clk 01:00:29]} {[%emt
00:11:20]} 12. a3 {[%clk 00:55:23]} {[%emt 00:04:42]} a5 {[%clk 00:57:46]}
{[%emt 00:03:12]} 13. Rb1 {[%clk 00:55:19]} {[%emt 00:00:34]} Bd4 {[%clk
00:44:57]} {[%emt 00:13:20]} 14. Bf3 {[%clk 00:24:33]} {[%emt 00:31:16]} Ba6
{[%clk 00:40:43]} {[%emt 00:04:44]} 15. b4 {[%clk 00:24:20]} {[%emt 00:00:43]}
axb4 {[%clk 00:26:10]} {[%emt 00:15:03]} 16. axb4 {[%clk 00:24:48]} {[%emt
00:00:02]} Qc8 {[%clk 00:26:27]} {[%emt 00:00:14]} 17. Ba3 {[%clk 00:16:39]}
{[%emt 00:08:38]} Rd8 {[%clk 00:22:40]} {[%emt 00:04:17]} 18. Rfc1 {[%clk
00:16:30]} {[%emt 00:00:39]} d5 {[%clk 00:16:34]} {[%emt 00:06:36]} 19. exd5
{[%clk 00:04:58]} {[%emt 00:12:02]} cxd5 {[%clk 00:16:31]} {[%emt 00:00:33]} 20.
b5 {[%clk 00:05:23]} {[%emt 00:00:06]} dxc4 {[%clk 00:16:04]} {[%emt 00:00:56]}
21. Qc2 {[%clk 00:05:01]} {[%emt 00:00:51]} Bb7 {[%clk 00:14:58]} {[%emt
00:01:37]} 22. Be7 {[%clk 00:04:31]} {[%emt 00:00:59]} Bxf3 {[%clk 00:13:54]}
{[%emt 00:01:35]} 23. gxf3 {[%clk 00:03:27]} {[%emt 00:01:34]} Rd7 {[%clk
00:05:16]} {[%emt 00:09:08]} 24. Bxf6 {[%clk 00:03:50]} {[%emt 00:00:08]} Bxc3
{[%clk 00:05:00]} {[%emt 00:00:46]} 25. Qxc3 {[%clk 00:04:10]} {[%emt
00:00:09]} gxf6 {[%clk 00:05:26]} {[%emt 00:00:04]} 26. Qxc4 {[%clk 00:04:19]}
{[%emt 00:00:21]} Rd1+ {[%clk 00:05:34]} {[%emt 00:00:22]} 27. Kg2 {[%clk
00:04:29]} {[%emt 00:00:20]} Qxc4 {[%clk 00:06:00]} {[%emt 00:00:05]} 0-1

[Event "25e Open International Landes Côtes Sud - Soorts Hossegor"]
[Site "Hossegor, France"]
[Date "2018.05.20"]
[Round "3.1"]
[White "Kirk, Ezra"]
[Black "Fournier, Loic"]
[Result "1-0"]
[TimeControl "90 minutes + 30 secondes par coup"]
[WhiteElo "2420"]
[BlackElo "2008"]

1. Nf3 {[%clk 01:25:36]} {[%emt 00:05:23]} Nf6 {[%clk 01:30:37]} {[%emt
00:00:24]} 2. c4 {[%clk 01:25:49]} {[%emt 00:00:16]} g6 {[%clk 01:30:48]}
{[%emt 00:00:20]} 3. Nc3 {[%clk 01:26:02]} {[%emt 00:00:16]} Bg7 {[%clk
01:31:02]} {[%emt 00:00:16]} 4. e4 {[%clk 01:25:32]} {[%emt 00:01:00]} d6
{[%clk 01:31:16]} {[%emt 00:00:17]} 5. d4 {[%clk 01:25:56]} {[%emt 00:00:05]}
O-O {[%clk 01:29:50]} {[%emt 00:01:56]} 6. Be2 {[%clk 01:20:04]} {[%emt
00:06:22]} Na6 {[%clk 01:28:42]} {[%emt 00:01:38]} 7. O-O {[%clk 01:19:20]}
{[%emt 00:01:13]} c5 {[%clk 01:29:08]} {[%emt 00:00:04]} 8. d5 {[%clk
01:19:24]} {[%emt 00:00:26]} Nc7 {[%clk 01:28:42]} {[%emt 00:00:56]} 9. h3
{[%clk 01:18:33]} {[%emt 00:01:20]} e6 {[%clk 01:22:38]} {[%emt 00:06:35]} 10.
Bg5 {[%clk 01:15:22]} {[%emt 00:03:39]} h6 {[%clk 01:20:57]} {[%emt 00:02:12]}
11. Be3 {[%clk 01:15:14]} {[%emt 00:00:37]} e5 {[%clk 01:21:04]} {[%emt
00:00:24]} 12. Qd2 {[%clk 01:13:20]} {[%emt 00:02:23]} Kh7 {[%clk 01:20:13]}
{[%emt 00:01:22]} 13. a3 {[%clk 01:12:26]} {[%emt 00:01:23]} Nh5 {[%clk
01:19:41]} {[%emt 00:01:02]} 14. Ne1 {[%clk 01:01:28]} {[%emt 00:11:27]} Qh4
{[%clk 01:12:43]} {[%emt 00:07:30]} 15. Nd3 {[%clk 00:48:23]} {[%emt 00:13:35]}
f5 {[%clk 01:08:02]} {[%emt 00:05:12]} 16. Bxh5 {[%clk 00:43:51]} {[%emt
00:05:01]} Qxh5 {[%clk 01:02:08]} {[%emt 00:06:24]} 17. f4 {[%clk 00:43:42]}
{[%emt 00:00:38]} exf4 {[%clk 00:54:43]} {[%emt 00:07:56]} 18. Bxf4 {[%clk
00:41:29]} {[%emt 00:02:43]} Bd4+ {[%clk 00:52:28]} {[%emt 00:02:46]} 19. Kh2
{[%clk 00:39:48]} {[%emt 00:02:10]} Rd8 {[%clk 00:52:02]} {[%emt 00:00:58]} 20.
e5 {[%clk 00:32:32]} {[%emt 00:07:45]} dxe5 {[%clk 00:48:58]} {[%emt 00:03:34]}
21. Bxe5 {[%clk 00:32:38]} {[%emt 00:00:23]} Bxe5 {[%clk 00:49:08]} {[%emt
00:00:20]} 22. Nxe5 {[%clk 00:33:02]} {[%emt 00:00:06]} Ne6 {[%clk 00:49:28]}
{[%emt 00:00:11]} 23. Nf7 {[%clk 00:32:31]} {[%emt 00:01:00]} Rd7 {[%clk
00:49:45]} {[%emt 00:00:14]} 24. Qe3 {[%clk 00:32:11]} {[%emt 00:00:48]} Rxf7
{[%clk 00:49:39]} {[%emt 00:00:38]} 25. dxe6 {[%clk 00:32:34]} {[%emt
00:00:07]} Re7 {[%clk 00:49:03]} {[%emt 00:01:07]} 26. Nd5 {[%clk 00:32:53]}
{[%emt 00:00:10]} Rxe6 {[%clk 00:47:51]} {[%emt 00:01:43]} 27. Nf6 {[%clk
00:31:37]} {[%emt 00:01:45]} Kh8 {[%clk 00:48:14]} {[%emt 00:00:08]} 28. Qxe6
{[%clk 00:31:56]} {[%emt 00:00:11]} Bxe6 {[%clk 00:48:38]} {[%emt 00:00:06]} 29.
Nxh5 {[%clk 00:32:22]} {[%emt 00:00:04]} gxh5 {[%clk 00:48:48]} {[%emt
00:00:21]} 30. Rae1 {[%clk 00:32:22]} {[%emt 00:00:29]} Bxc4 {[%clk 00:48:22]}
{[%emt 00:00:57]} 31. Rxf5 {[%clk 00:32:44]} {[%emt 00:00:07]} b6 {[%clk
00:48:33]} {[%emt 00:00:20]} 32. Re7 {[%clk 00:33:03]} {[%emt 00:00:09]} Rd8
{[%clk 00:48:17]} {[%emt 00:00:47]} 33. Rxa7 {[%clk 00:32:27]} {[%emt
00:01:06]} Kg8 {[%clk 00:47:14]} {[%emt 00:01:33]} 34. Rf6 {[%clk 00:31:25]}
{[%emt 00:01:33]} b5 {[%clk 00:46:24]} {[%emt 00:01:21]} 35. Rg6+ {[%clk
00:31:37]} {[%emt 00:00:16]} Kf8 {[%clk 00:46:46]} {[%emt 00:00:10]} 36. Rxh6
{[%clk 00:31:51]} {[%emt 00:00:15]} 1-0

[ePGN "0.1;DGT LiveChess/2.1"]

[Event "25e Open International Landes Côtes Sud - Soorts Hossegor"]
[Site "Hossegor, France"]
[Date "2018.05.20"]
[Round "4.3"]
[White "Bareyre, Patrick"]
[Black "Etchegaray, Patrice"]
[Result "1/2-1/2"]
[TimeControl "90 minutes + 30 secondes par coup"]
[WhiteElo "2149"]
[BlackElo "2342"]

1. d4 {[%clk 01:28:29]} {[%emt 00:02:30]} Nf6 {[%clk 01:30:34]} {[%emt
00:00:26]} 2. Bf4 {[%clk 01:25:09]} {[%emt 00:03:50]} g6 {[%clk 01:30:09]}
{[%emt 00:00:55]} 3. Nc3 {[%clk 01:22:43]} {[%emt 00:02:56]} d5 {[%clk
01:26:16]} {[%emt 00:04:23]} 4. Nb5 {[%clk 01:20:18]} {[%emt 00:02:55]} Na6
{[%clk 01:26:16]} {[%emt 00:00:30]} 5. e3 {[%clk 01:20:42]} {[%emt 00:00:06]}
Bg7 {[%clk 01:24:55]} {[%emt 00:01:51]} 6. Nf3 {[%clk 01:17:25]} {[%emt
00:03:47]} O-O {[%clk 01:24:22]} {[%emt 00:01:03]} 7. h3 {[%clk 01:17:38]}
{[%emt 00:00:17]} c6 {[%clk 01:14:01]} {[%emt 00:10:51]} 8. Nc3 {[%clk
01:17:45]} {[%emt 00:00:24]} Qb6 {[%clk 01:10:39]} {[%emt 00:03:52]} 9. Rb1
{[%clk 00:58:01]} {[%emt 00:20:14]} c5 {[%clk 01:07:07]} {[%emt 00:04:02]} 10.
Bxa6 {[%clk 00:54:16]} {[%emt 00:04:15]} bxa6 {[%clk 01:02:06]} {[%emt
00:05:31]} 11. dxc5 {[%clk 00:52:44]} {[%emt 00:02:02]} Qxc5 {[%clk 01:02:24]}
{[%emt 00:00:12]} 12. O-O {[%clk 00:53:07]} {[%emt 00:00:07]} Bb7 {[%clk
00:54:07]} {[%emt 00:08:48]} 13. Be5 {[%clk 00:51:34]} {[%emt 00:02:03]} Rfd8
{[%clk 00:52:14]} {[%emt 00:02:23]} 14. Bd4 {[%clk 00:45:14]} {[%emt 00:06:50]}
Qc6 {[%clk 00:51:23]} {[%emt 00:01:21]} 15. Ne5 {[%clk 00:43:37]} {[%emt
00:02:07]} Qc7 {[%clk 00:50:14]} {[%emt 00:01:38]} 16. Qf3 {[%clk 00:43:18]}
{[%emt 00:00:49]} e6 {[%clk 00:45:58]} {[%emt 00:04:47]} 17. Rfd1 {[%clk
00:30:31]} {[%emt 00:13:18]} Ne8 {[%clk 00:44:02]} {[%emt 00:02:25]} 18. Qg3
{[%clk 00:23:12]} {[%emt 00:07:50]} f6 {[%clk 00:36:25]} {[%emt 00:08:07]} 19.
Nd3 {[%clk 00:22:28]} {[%emt 00:01:14]} Qxg3 {[%clk 00:33:34]} {[%emt
00:03:21]} 20. fxg3 {[%clk 00:22:57]} {[%emt 00:00:02]} e5 {[%clk 00:33:06]}
{[%emt 00:00:58]} 21. Bc5 {[%clk 00:23:21]} {[%emt 00:00:06]} Nc7 {[%clk
00:32:48]} {[%emt 00:00:48]} 22. Bb4 {[%clk 00:22:49]} {[%emt 00:01:02]} Ne6
{[%clk 00:30:20]} {[%emt 00:02:57]} 23. Na4 {[%clk 00:22:40]} {[%emt 00:00:40]}
Bc6 {[%clk 00:23:33]} {[%emt 00:07:17]} 24. Nac5 {[%clk 00:22:15]} {[%emt
00:00:55]} Nxc5 {[%clk 00:23:37]} {[%emt 00:00:26]} 25. Nxc5 {[%clk 00:22:27]}
{[%emt 00:00:17]} Bh6 {[%clk 00:23:05]} {[%emt 00:01:02]} 26. Re1 {[%clk
00:19:23]} {[%emt 00:03:35]} Rdb8 {[%clk 00:18:26]} {[%emt 00:05:08]} 27. c3
{[%clk 00:19:01]} {[%emt 00:00:53]} Rb6 {[%clk 00:17:36]} {[%emt 00:01:20]} 28.
Ba5 {[%clk 00:17:00]} {[%emt 00:02:31]} Rb5 {[%clk 00:17:07]} {[%emt 00:00:59]}
29. b4 {[%clk 00:17:19]} {[%emt 00:00:11]} Bf8 {[%clk 00:15:30]} {[%emt
00:02:06]} 30. Nxa6 {[%clk 00:17:11]} {[%emt 00:00:38]} Rb7 {[%clk 00:15:27]}
{[%emt 00:00:32]} 31. Rbd1 {[%clk 00:17:09]} {[%emt 00:00:33]} Rc8 {[%clk
00:15:31]} {[%emt 00:00:27]} 32. a4 {[%clk 00:16:17]} {[%emt 00:01:22]} Bxa4
{[%clk 00:14:50]} {[%emt 00:01:10]} 33. Rxd5 {[%clk 00:16:40]} {[%emt
00:00:07]} Rxc3 {[%clk 00:14:55]} {[%emt 00:00:26]} 34. Rd8 {[%clk 00:16:43]}
{[%emt 00:00:26]} Kf7 {[%clk 00:13:48]} {[%emt 00:01:37]} 35. Rxf8+ {[%clk
00:15:20]} {[%emt 00:01:53]} Kxf8 {[%clk 00:12:32]} {[%emt 00:01:46]} 36. Nc5
{[%clk 00:15:48]} {[%emt 00:00:01]} Rxc5 {[%clk 00:10:48]} {[%emt 00:02:15]} 37.
bxc5 {[%clk 00:16:04]} {[%emt 00:00:14]} Rb2 {[%clk 00:10:29]} {[%emt
00:00:48]} 38. Rf1 {[%clk 00:15:09]} {[%emt 00:01:25]} Ke7 {[%clk 00:10:26]}
{[%emt 00:00:34]} 39. Bc7 {[%clk 00:15:07]} {[%emt 00:00:33]} Bc6 {[%clk
00:08:36]} {[%emt 00:02:20]} 40. Rf2 {[%clk 00:15:25]} {[%emt 00:00:12]} Rxf2
{[%clk 00:09:00]} {[%emt 00:00:07]} 41. Kxf2 {[%clk 00:15:54]} Ke6 {[%clk
00:09:22]} {[%emt 00:00:08]} 42. g4 {[%clk 00:14:20]} {[%emt 00:02:04]} Kd5
{[%clk 00:08:40]} {[%emt 00:01:12]} 43. Bd8 {[%clk 00:14:37]} {[%emt 00:00:13]}
f5 {[%clk 00:07:28]} {[%emt 00:01:41]} 44. gxf5 {[%emt 00:00:10]} gxf5 {[%clk
00:07:49]} {[%emt 00:00:06]} 45. Bc7 {[%clk 00:11:45]} {[%emt 00:03:45]} Kxc5
{[%emt 00:02:52]} 1/2-1/2

[Event "25e Open International Landes Côtes Sud - Soorts Hossegor"]
[Site "Hossegor, France"]
[Date "2018.05.20"]
[Round "4.1"]
[White "Favarel, Julien"]
[Black "Kirk, Ezra"]
[Result "0-1"]
[TimeControl "90 minutes + 30 secondes par coup"]
[WhiteElo "2266"]
[BlackElo "2420"]

1. Nf3 {[%clk 01:30:54]} {[%emt 00:00:06]} c5 {[%clk 01:29:29]} {[%emt
00:01:32]} 2. c4 {[%clk 01:30:40]} {[%emt 00:00:42]} Nc6 {[%clk 01:28:55]}
{[%emt 00:01:04]} 3. Nc3 {[%clk 01:29:57]} {[%emt 00:01:12]} Nf6 {[%clk
01:21:49]} {[%emt 00:07:36]} 4. d4 {[%clk 01:25:26]} {[%emt 00:05:02]} cxd4
{[%clk 01:21:54]} {[%emt 00:00:25]} 5. Nxd4 {[%clk 01:25:54]} {[%emt 00:00:03]}
g6 {[%clk 01:20:52]} {[%emt 00:01:31]} 6. e4 {[%clk 01:23:14]} {[%emt
00:03:09]} Bg7 {[%clk 01:21:12]} {[%emt 00:00:09]} 7. Be3 {[%clk 01:22:23]}
{[%emt 00:01:22]} O-O {[%clk 01:20:08]} {[%emt 00:01:34]} 8. f3 {[%clk
01:10:00]} {[%emt 00:12:54]} d6 {[%clk 01:20:12]} {[%emt 00:00:26]} 9. Be2
{[%clk 01:01:55]} {[%emt 00:08:35]} Bd7 {[%clk 01:19:44]} {[%emt 00:00:59]} 10.
O-O {[%clk 00:58:00]} {[%emt 00:04:25]} Nxd4 {[%clk 01:17:40]} {[%emt
00:02:32]} 11. Bxd4 {[%clk 00:58:20]} {[%emt 00:00:12]} a5 {[%clk 01:17:33]}
{[%emt 00:00:36]} 12. b3 {[%clk 00:54:46]} {[%emt 00:04:04]} Bc6 {[%clk
01:17:43]} {[%emt 00:00:20]} 13. Rc1 {[%clk 00:49:26]} {[%emt 00:05:50]} Nd7
{[%clk 01:17:34]} {[%emt 00:00:38]} 14. Be3 {[%clk 00:48:47]} {[%emt 00:01:10]}
Nc5 {[%clk 01:17:56]} {[%emt 00:00:08]} 15. Qd2 {[%clk 00:45:12]} {[%emt
00:04:05]} Be5 {[%clk 01:13:09]} {[%emt 00:05:16]} 16. Bh6 {[%clk 00:26:11]}
{[%emt 00:19:32]} Bg7 {[%clk 01:09:45]} {[%emt 00:03:54]} 17. Be3 {[%clk
00:25:28]} {[%emt 00:01:13]} Qb6 {[%clk 01:02:54]} {[%emt 00:07:20]} 18. Nb5
{[%clk 00:24:19]} {[%emt 00:01:40]} Rfc8 {[%clk 00:54:44]} {[%emt 00:08:40]} 19.
Kh1 {[%clk 00:17:59]} {[%emt 00:06:51]} Qd8 {[%clk 00:50:34]} {[%emt 00:04:39]}
20. Nd4 {[%clk 00:18:01]} {[%emt 00:00:28]} Qf8 {[%clk 00:49:41]} {[%emt
00:01:23]} 21. Rb1 {[%clk 00:16:43]} {[%emt 00:01:48]} Bd7 {[%clk 00:47:39]}
{[%emt 00:02:31]} 22. Rfc1 {[%clk 00:13:28]} {[%emt 00:03:45]} h5 {[%clk
00:46:15]} {[%emt 00:01:53]} 23. a3 {[%clk 00:07:57]} {[%emt 00:06:02]} a4
{[%clk 00:34:09]} {[%emt 00:12:36]} 24. b4 {[%clk 00:07:55]} {[%emt 00:00:33]}
Bxd4 {[%clk 00:33:03]} {[%emt 00:01:35]} 25. bxc5 {[%clk 00:06:40]} {[%emt
00:01:45]} Bxe3 {[%clk 00:32:00]} {[%emt 00:01:33]} 26. Qxe3 {[%clk 00:07:08]}
{[%emt 00:00:02]} Rxc5 {[%clk 00:31:13]} {[%emt 00:01:18]} 27. Rxb7 {[%clk
00:07:08]} {[%emt 00:00:30]} Qc8 {[%clk 00:28:25]} {[%emt 00:03:17]} 28. Rcb1
{[%clk 00:07:13]} {[%emt 00:00:26]} h4 {[%clk 00:22:15]} {[%emt 00:06:39]} 29.
f4 {[%clk 00:05:12]} {[%emt 00:02:31]} h3 {[%clk 00:21:33]} {[%emt 00:01:11]}
30. gxh3 {[%clk 00:04:22]} {[%emt 00:01:20]} Bc6 {[%clk 00:20:29]} {[%emt
00:01:34]} 31. R7b6 {[%clk 00:04:04]} {[%emt 00:00:49]} Qe6 {[%clk 00:14:59]}
{[%emt 00:05:59]} 32. Bd3 {[%clk 00:03:51]} {[%emt 00:00:42]} Rc8 {[%clk
00:14:17]} {[%emt 00:01:12]} 33. Kg1 {[%clk 00:03:41]} {[%emt 00:00:41]} Rh5
{[%clk 00:11:22]} {[%emt 00:03:24]} 34. f5 {[%clk 00:01:32]} {[%emt 00:02:40]}
Qf6 {[%clk 00:11:03]} {[%emt 00:00:49]} 35. Rb8 {[%clk 00:00:57]} {[%emt
00:01:05]} Rxb8 {[%clk 00:10:39]} {[%emt 00:00:54]} 36. Rxb8+ {[%clk 00:01:26]}
Kh7 {[%clk 00:09:09]} {[%emt 00:01:59]} 37. Rb6 {[%clk 00:01:38]} {[%emt
00:00:19]} Rg5+ {[%clk 00:06:27]} {[%emt 00:03:12]} 38. Kf2 {[%clk 00:00:43]}
{[%emt 00:01:25]} gxf5 {[%clk 00:06:05]} {[%emt 00:00:52]} 39. e5 {[%clk
00:00:46]} {[%emt 00:00:27]} Rg2+ {[%clk 00:05:04]} {[%emt 00:01:30]} 40. Kf1
{[%clk 00:01:03]} {[%emt 00:00:14]} dxe5 {[%clk 00:05:22]} {[%emt 00:00:12]} 41.
Rxc6 {[%clk 00:00:58]} {[%emt 00:00:35]} Qxc6 {[%clk 00:05:09]} {[%emt
00:00:43]} 42. Bxf5 {[%clk 00:01:21]} {[%emt 00:00:07]} Rg6 {[%clk 00:05:04]}
{[%emt 00:00:35]} 43. Qe4 {[%clk 00:00:40]} {[%emt 00:01:12]} Qc5 {[%clk
00:03:28]} {[%emt 00:02:05]} 44. Bxg6 {[%clk 00:00:32]} {[%emt 00:00:39]} fxg6
{[%clk 00:03:52]} {[%emt 00:00:05]} 45. Qd3 {[%clk 00:00:32]} {[%emt 00:00:31]}
Kg7 {[%clk 00:03:52]} {[%emt 00:00:30]} 46. Ke2 {[%clk 00:00:47]} {[%emt
00:00:15]} Qd4 {[%clk 00:03:49]} {[%emt 00:00:32]} 47. Qxd4 {[%emt 00:00:47]}
exd4 {[%clk 00:04:13]} {[%emt 00:00:06]} 48. c5 {[%clk 00:00:44]} {[%emt
00:00:17]} Kf7 {[%clk 00:04:36]} {[%emt 00:00:06]} 49. Ke1 {[%emt 00:00:54]}
0-1

[Event "25e Open International Landes Côtes Sud - Soorts Hossegor"]
[Site "Hossegor, France"]
[Date "2018.05.20"]
[Round "4.2"]
[White "Fantinel, Thibault"]
[Black "Louis, Thibault"]
[Result "1-0"]
[TimeControl "90 minutes + 30 secondes par coup"]
[WhiteElo "2406"]
[BlackElo "2245"]

1. e4 {[%clk 01:30:56]} {[%emt 00:00:03]} c5 {[%clk 01:30:44]} {[%emt
00:00:17]} 2. Nf3 {[%clk 01:31:08]} {[%emt 00:00:18]} Nc6 {[%clk 01:31:08]}
{[%emt 00:00:06]} 3. Bb5 {[%clk 01:30:30]} {[%emt 00:01:08]} g6 {[%clk
01:31:31]} {[%emt 00:00:07]} 4. Bxc6 {[%clk 01:30:17]} {[%emt 00:00:45]} dxc6
{[%clk 01:31:55]} {[%emt 00:00:05]} 5. d3 {[%clk 01:30:43]} {[%emt 00:00:03]}
Bg7 {[%clk 01:32:17]} {[%emt 00:00:07]} 6. h3 {[%clk 01:31:05]} {[%emt
00:00:09]} Nf6 {[%clk 01:32:26]} {[%emt 00:00:22]} 7. Nc3 {[%clk 01:31:26]}
{[%emt 00:00:08]} b6 {[%clk 01:32:47]} {[%emt 00:00:08]} 8. Bf4 {[%clk
01:28:07]} {[%emt 00:03:49]} Nd7 {[%clk 01:33:02]} {[%emt 00:00:15]} 9. Qd2
{[%clk 01:27:01]} {[%emt 00:01:37]} h6 {[%clk 01:33:16]} {[%emt 00:00:16]} 10.
e5 {[%clk 01:16:52]} {[%emt 00:10:38]} Nf8 {[%clk 01:33:27]} {[%emt 00:00:18]}
11. O-O {[%clk 01:16:04]} {[%emt 00:01:19]} Ne6 {[%clk 01:33:37]} {[%emt
00:00:19]} 12. Rfe1 {[%clk 01:15:47]} {[%emt 00:00:47]} Nd4 {[%clk 01:28:18]}
{[%emt 00:05:50]} 13. Nxd4 {[%clk 01:14:26]} {[%emt 00:01:52]} cxd4 {[%clk
01:28:22]} {[%emt 00:00:25]} 14. Ne4 {[%clk 01:14:39]} {[%emt 00:00:18]} g5
{[%clk 01:27:01]} {[%emt 00:01:51]} 15. Bg3 {[%clk 01:13:48]} {[%emt 00:01:21]}
O-O {[%clk 01:27:15]} {[%emt 00:00:16]} 16. h4 {[%clk 01:11:46]} {[%emt
00:02:32]} f5 {[%clk 01:27:30]} {[%emt 00:00:15]} 17. exf6 {[%clk 01:09:32]}
{[%emt 00:02:45]} exf6 {[%clk 01:27:49]} {[%emt 00:00:10]} 18. hxg5 {[%clk
01:05:59]} {[%emt 00:04:03]} fxg5 {[%clk 01:26:34]} {[%emt 00:01:44]} 19. Nd6
{[%clk 01:01:44]} {[%emt 00:04:46]} Bg4 {[%clk 01:11:42]} {[%emt 00:15:22]} 20.
Re4 {[%clk 00:54:52]} {[%emt 00:07:22]} h5 {[%clk 01:10:13]} {[%emt 00:01:58]}
21. Rae1 {[%clk 00:53:18]} {[%emt 00:02:05]} Bf6 {[%clk 01:06:03]} {[%emt
00:04:38]} 22. Qb4 {[%clk 00:45:51]} {[%emt 00:07:59]} Qd7 {[%clk 00:54:38]}
{[%emt 00:11:54]} 23. Be5 {[%clk 00:33:48]} {[%emt 00:12:33]} c5 {[%clk
00:48:45]} {[%emt 00:06:22]} 24. Qd2 {[%clk 00:31:06]} {[%emt 00:03:13]} Be7
{[%clk 00:43:49]} {[%emt 00:05:23]} 25. Bxd4 {[%clk 00:24:12]} {[%emt
00:07:28]} Bxd6 {[%clk 00:43:02]} {[%emt 00:01:14]} 26. Qxg5+ {[%clk 00:24:19]}
{[%emt 00:00:24]} Kh7 {[%clk 00:43:23]} {[%emt 00:00:09]} 27. Re7 {[%clk
00:24:33]} {[%emt 00:00:17]} Rf7 {[%clk 00:43:39]} {[%emt 00:00:14]} 28. R1e6
{[%clk 00:16:10]} {[%emt 00:08:53]} 1-0

[ePGN "0.1;DGT LiveChess/2.1"]

[Event "25e Open International Landes Côtes Sud - Soorts Hossegor"]
[Site "Hossegor, France"]
[Date "2018.05.20"]
[Round "5.1"]
[White "Kirk, Ezra"]
[Black "Fantinel, Thibault"]
[Result "1/2-1/2"]
[TimeControl "90 minutes + 30 secondes par coup"]
[WhiteElo "2420"]
[BlackElo "2406"]

1. d4 {[%clk 01:28:30]} {[%emt 00:02:29]} d5 {[%clk 01:30:47]} {[%emt
00:00:14]} 2. c4 {[%clk 01:28:50]} {[%emt 00:00:09]} c6 {[%clk 01:31:05]}
{[%emt 00:00:13]} 3. Nf3 {[%clk 01:28:36]} {[%emt 00:00:45]} Nf6 {[%clk
01:31:04]} {[%emt 00:00:30]} 4. cxd5 {[%clk 01:28:57]} {[%emt 00:00:09]} cxd5
{[%clk 01:31:26]} {[%emt 00:00:08]} 5. Nc3 {[%clk 01:29:24]} {[%emt 00:00:03]}
Nc6 {[%clk 01:31:42]} {[%emt 00:00:14]} 6. Bf4 {[%clk 01:29:28]} {[%emt
00:00:26]} Bf5 {[%clk 01:31:39]} {[%emt 00:00:33]} 7. a3 {[%clk 01:29:20]}
{[%emt 00:00:38]} e6 {[%clk 01:30:57]} {[%emt 00:01:12]} 8. e3 {[%clk
01:28:28]} {[%emt 00:01:22]} Rc8 {[%clk 01:30:10]} {[%emt 00:01:17]} 9. Bd3
{[%clk 01:28:50]} {[%emt 00:00:09]} Bxd3 {[%clk 01:30:10]} {[%emt 00:00:30]} 10.
Qxd3 {[%clk 01:29:08]} {[%emt 00:00:11]} Bd6 {[%clk 01:30:18]} {[%emt
00:00:22]} 11. Bxd6 {[%clk 01:29:34]} {[%emt 00:00:05]} Qxd6 {[%clk 01:30:45]}
{[%emt 00:00:03]} 12. O-O {[%clk 01:29:55]} {[%emt 00:00:09]} O-O {[%clk
01:30:43]} {[%emt 00:00:32]} 13. Rfc1 {[%clk 01:29:30]} {[%emt 00:00:54]} Na5
{[%clk 01:29:57]} {[%emt 00:01:16]} 14. Ne2 {[%clk 01:28:10]} {[%emt 00:01:49]}
Ne4 {[%clk 01:28:45]} {[%emt 00:01:43]} 15. Nc3 {[%clk 01:25:42]} {[%emt
00:02:57]} Nxc3 {[%clk 01:24:41]} {[%emt 00:04:35]} 16. Rxc3 {[%clk 01:25:38]}
{[%emt 00:00:34]} Rxc3 {[%clk 01:24:52]} {[%emt 00:00:19]} 17. Qxc3 {[%clk
01:25:57]} {[%emt 00:00:11]} Nc4 {[%clk 01:25:06]} {[%emt 00:00:15]} 18. Nd2
{[%clk 01:25:50]} {[%emt 00:00:37]} Nxd2 {[%clk 01:24:52]} {[%emt 00:00:45]} 19.
Qxd2 {[%clk 01:26:03]} {[%emt 00:00:18]} Rc8 {[%clk 01:25:17]} {[%emt
00:00:04]} 20. Rc1 {[%clk 01:26:26]} {[%emt 00:00:06]} Rc6 {[%clk 01:25:39]}
{[%emt 00:00:08]} 21. Rc3 {[%clk 01:25:20]} {[%emt 00:01:36]} Qc7 {[%clk
01:25:40]} {[%emt 00:00:30]} 22. Rxc6 {[%clk 01:25:34]} {[%emt 00:00:16]} Qxc6
{[%clk 01:26:06]} {[%emt 00:00:04]} 23. Kf1 {[%clk 01:25:28]} {[%emt 00:00:36]}
Qc4+ {[%clk 01:26:05]} {[%emt 00:00:31]} 24. Kg1 {[%clk 01:25:23]} {[%emt
00:00:34]} h5 {[%clk 01:26:25]} {[%emt 00:00:11]} 25. h4 {[%clk 01:25:42]}
{[%emt 00:00:11]} g6 {[%clk 01:26:51]} {[%emt 00:00:04]} 26. g3 {[%clk
01:26:08]} {[%emt 00:00:04]} Kg7 {[%clk 01:27:11]} {[%emt 00:00:09]} 27. Kg2
{[%clk 01:26:21]} {[%emt 00:00:16]} Qb3 {[%clk 01:27:13]} {[%emt 00:00:29]} 28.
Qe2 {[%clk 01:26:16]} {[%emt 00:00:33]} Qc4 {[%clk 01:27:26]} {[%emt 00:00:20]}
29. Qd2 {[%clk 01:26:40]} {[%emt 00:00:05]} Qb3 {[%clk 01:27:53]} {[%emt
00:00:04]} 30. Qe2 {[%clk 01:27:05]} {[%emt 00:00:05]} Qc4 {[%clk 01:28:20]}
{[%emt 00:00:03]} 31. Qd2 {[%clk 01:27:30]} {[%emt 00:00:04]} 1/2-1/2